bitfinex/quotes_BTCUSD_20220304
["timestamp","ask_amount","ask_price","bid_price","bid_amount"]
[1646405664292,0.061359,40779.0,40773.0,0.24556371]
[1646405664732,0.30511854,40788.0,40773.0,0.29556371]
[1646405664931,0.30511854,40788.0,40773.0,0.35692471]
[1646405665135,0.061349,40786.0,40773.0,0.35692471]
[1646405665331,0.24722854,40785.0,40773.0,0.35692471]
[1646405665530,0.24722854,40785.0,40779.0,0.27342424]
[1646405665733,0.06135357,40785.0,40779.0,0.27342424]
[1646405666033,0.2499,40791.0,40779.0,0.32342424]
[1646405666232,0.061345,40790.0,40779.0,0.32342424]
[1646405666534,0.003,40789.0,40779.0,0.32342424]
[1646405667033,0.25174057,40784.0,40779.0,0.045]
[1646405667233,0.31321027,40786.0,40776.0,0.122699]
[1646405667234,0.061349,40786.0,40776.0,0.122699]
[1646405668033,0.061349,40786.0,40772.0,0.122695]
[1646405668235,0.061373,40776.0,40767.0,0.30511854]
[1646405668475,0.004,40788.0,40768.0,0.02423]
[1646405668874,0.004,40788.0,40781.0,0.00081461]
[1646405669076,0.06135243,40787.0,40781.0,0.00081461]
[1646405669275,0.06135243,40787.0,40782.0,0.28301175]
[1646405669476,0.06135243,40787.0,40781.0,0.00081461]
[1646405669477,0.061356,40785.0,40781.0,0.00081461]
[1646405670078,0.12271072,40785.0,40781.0,0.00081461]
[1646405670475,0.32485409,40784.0,40781.0,0.00081461]
[1646405670877,0.37485409,40784.0,40781.0,0.00081461]
[1646405671075,0.26695728,40783.0,40781.0,0.0006568]
[1646405671276,0.37485409,40784.0,40781.0,0.0006568]
[1646405672077,0.37485409,40784.0,40765.0,0.30511854]
[1646405672078,0.061357,40780.0,40765.0,0.30511854]
[1646405672330,0.122725,40781.0,40780.0,7.16190115]
[1646405672529,0.025,40792.0,40780.0,7.16190115]
[1646405672530,0.004,40785.0,40780.0,7.16190115]
[1646405672733,0.004,40785.0,40781.0,0.3042088]
[1646405673036,0.004,40785.0,40782.0,0.23100612]
[1646405673232,0.004,40785.0,40782.0,0.30523612]
[1646405673433,0.004,40785.0,40783.0,0.25658894]
[1646405673830,0.06134128,40791.0,40783.0,0.25658894]
[1646405674129,0.06134128,40791.0,40784.0,0.3042088]
[1646405674330,0.061342,40790.0,40784.0,0.05]
[1646405674531,0.061342,40790.0,40784.0,0.061339]
[1646405675429,0.23259372,40798.0,40797.0,6.41182792]
[1646405675635,0.62506727,40798.0,40797.0,5.10727796]
[1646405675829,0.38259372,40798.0,40797.0,5.10727796]
[1646405676083,0.44393472,40798.0,40797.0,5.10727796]
[1646405676284,0.211341,40798.0,40797.0,5.10727796]
[1646405676585,0.211341,40798.0,40791.0,0.27781768]
[1646405676785,0.211341,40798.0,40784.0,0.24]
[1646405676786,0.1,40797.0,40784.0,0.24]
[1646405676983,0.061338,40794.0,40785.0,0.061339]
[1646405677182,0.061338,40794.0,40786.0,0.31309455]
[1646405677382,0.061338,40794.0,40793.0,0.28146175]
[1646405678383,0.061338,40794.0,40784.0,0.301341]
[1646405678585,0.061338,40794.0,40783.0,0.00081306]
[1646405679187,0.061338,40794.0,40782.0,0.0623737]
[1646405679384,0.061338,40794.0,40788.0,0.2468385]
[1646405679385,0.25740483,40793.0,40788.0,0.2468385]
[1646405679830,0.061338,40794.0,40788.0,0.2468385]
[1646405680431,0.061338,40794.0,40780.0,0.30851042]
[1646405680632,0.061338,40794.0,40777.0,0.06686299]
[1646405680833,0.25623352,40787.0,40780.0,0.24355348]
[1646405681030,0.25623352,40787.0,40777.0,0.06686299]
[1646405681231,0.272681,40795.0,40777.0,0.06686299]
[1646405681232,0.06135,40784.0,40777.0,0.06686299]
[1646405681429,0.1227007,40795.0,40779.0,0.061345]
[1646405681629,0.1,40795.0,40787.0,0.24471926]
[1646405682030,0.095,40795.0,40787.0,0.24471926]
[1646405682231,0.122686,40793.0,40789.0,0.27576386]
[1646405682530,0.061342,40794.0,40789.0,0.32576386]
[1646405682730,0.061342,40794.0,40787.0,0.29471926]
[1646405683336,0.061342,40794.0,40777.0,0.02423]
[1646405683577,0.061342,40794.0,40778.0,0.06659055]
[1646405683578,0.085572,40794.0,40778.0,0.06659055]
[1646405683778,0.085572,40794.0,40780.0,0.23995504]
[1646405684080,0.061342,40794.0,40780.0,0.23995504]
[1646405684477,0.061342,40794.0,40790.0,0.27747102]
[1646405684678,0.33849932,40794.0,40790.0,0.05]
[1646405685078,0.33849932,40794.0,40781.0,0.30851042]
[1646405685279,0.061347,40789.0,40774.0,0.061349]
[1646405685478,0.061347,40789.0,40769.0,0.30851042]
[1646405685479,0.06135356,40789.0,40769.0,0.30851042]
[1646405685679,0.26880248,40782.0,40776.0,0.20907653]
[1646405685883,0.1,40791.0,40774.0,0.27382263]
[1646405686079,0.1,40791.0,40777.0,0.21289199]
[1646405686276,0.1,40791.0,40776.0,0.06729957]
[1646405686277,0.1,40791.0,40775.0,0.30851042]
[1646405686479,0.122711,40785.0,40771.0,0.003]
[1646405686680,0.06135178,40790.0,40771.0,0.003]
[1646405686681,0.30851042,40784.0,40771.0,0.003]
[1646405686880,0.061364,40781.0,40776.0,0.2536605]
[1646405687080,0.061364,40781.0,40771.0,0.003]
[1646405687334,0.0452,40780.0,40771.0,0.003]
[1646405687532,0.36988233,40779.0,40771.0,0.003]
[1646405687732,0.1,40778.0,40769.0,0.24]
[1646405687934,0.43123742,40782.0,40769.0,0.48074871]
[1646405687935,0.25863053,40776.0,40769.0,0.48074871]
[1646405688132,0.45546742,40782.0,40769.0,0.48074871]
[1646405688133,0.43123742,40782.0,40769.0,0.48074871]
[1646405688331,0.43123742,40782.0,40772.0,0.21889402]
[1646405688332,0.122727,40782.0,40772.0,0.21889402]
[1646405688535,0.008,40777.0,40769.0,0.48074871]
[1646405688733,0.30129872,40775.0,40769.0,0.48074871]
[1646405688931,0.069365,40777.0,40769.0,0.24]
[1646405689736,0.36987542,40777.0,40769.0,0.24]
[1646405689935,0.061379,40772.0,40769.0,0.24]
[1646405690534,0.061379,40772.0,40756.0,0.001]
[1646405690535,0.02423,40770.0,40757.0,0.00087018]
[1646405690739,0.28399458,40758.0,40757.0,0.00087018]
[1646405690995,0.35080042,40759.0,40757.0,0.00087018]
[1646405691201,0.061396,40759.0,40757.0,0.00087018]
[1646405691596,0.0452,40767.0,40757.0,0.00087018]
[1646405692098,0.47703508,40767.0,40758.0,0.24796415]
[1646405692297,0.061382,40765.0,40759.0,0.05]
[1646405692495,0.106582,40765.0,40759.0,0.05]
[1646405693095,0.106582,40765.0,40757.0,0.00087018]
[1646405693297,0.206582,40765.0,40757.0,0.00087018]
[1646405693496,0.251582,40765.0,40757.0,0.00087018]
[1646405693700,0.122792,40762.0,40754.0,0.00087018]
[1646405693896,0.30936572,40761.0,40759.0,0.00139319]
[1646405694096,0.57262332,40760.0,40759.0,0.00125388]
[1646405694296,0.30936572,40760.0,40759.0,0.00125388]
[1646405694497,0.104,40765.0,40759.0,0.00125388]
[1646405694732,0.004,40765.0,40759.0,0.00125388]
[1646405695332,0.3264524,40762.0,40759.0,0.00125388]
[1646405695534,0.061392,40760.0,40759.0,0.00125388]
[1646405696834,0.61575229,40760.0,40759.0,0.00125388]
[1646405697035,0.76575229,40760.0,40759.0,0.24125388]
[1646405697238,0.81095229,40760.0,40759.0,0.24125388]
[1646405697435,1.4,40759.0,40750.0,1.88987268]
[1646405697636,0.061413,40757.0,40750.0,1.88987268]
[1646405697838,0.061413,40757.0,40750.0,1.88287268]
[1646405697839,0.35541676,40756.0,40750.0,1.88287268]
[1646405698035,0.35541676,40756.0,40750.0,1.87287268]
[1646405698036,0.36558171,40755.0,40750.0,1.87287268]
[1646405698236,0.0452,40754.0,40750.0,1.48533168]
[1646405698478,0.27186969,40753.0,40750.0,1.48533168]
[1646405698679,0.0452,40752.0,40750.0,0.24643168]
[1646405698883,0.106618,40752.0,40748.0,0.002]
[1646405699081,0.201618,40752.0,40748.0,0.002]
[1646405699282,0.15,40751.0,40740.0,0.001]
[1646405699481,0.15,40748.0,40740.0,0.001]
[1646405699681,0.78793634,40747.0,40740.0,0.001]
[1646405699881,0.28729721,40746.0,40740.0,0.001]
[1646405700082,0.106632,40745.0,40740.0,0.001]
[1646405700280,0.31021676,40744.0,40737.0,0.003]
[1646405700580,0.061432,40740.0,40737.0,0.003]
[1646405700778,0.15720402,40740.0,40737.0,0.003]
[1646405701181,0.14,40738.0,40737.0,0.0001]
[1646405701386,0.14,40738.0,40733.0,0.001]
[1646405701387,0.31021676,40738.0,40733.0,0.001]
[1646405701583,0.53310456,40738.0,40733.0,0.001]
[1646405701783,0.0452,40737.0,40733.0,0.001]
[1646405701980,0.30877888,40737.0,40733.0,0.001]
[1646405702231,2.22372905,40736.0,40733.0,0.001]
[1646405702532,0.0452,40736.0,40733.0,0.001]
[1646405702931,0.0452,40736.0,40733.0,0.062422]
[1646405703232,0.0452,40736.0,40735.0,0.20873087]
[1646405703431,0.0452,40736.0,40735.0,0.3090346]
[1646405703631,0.0452,40736.0,40735.0,0.52181948]
[1646405703832,0.0452,40736.0,40735.0,0.3590346]
[1646405704233,0.061431,40739.0,40735.0,0.3590346]
[1646405704433,0.26948,40755.0,40737.0,1.4]
[1646405704434,0.0452,40754.0,40737.0,1.4]
[1646405704634,0.19237523,40755.0,40741.0,0.061396]
[1646405704833,0.28129144,40752.0,40745.0,0.2300949]
[1646405705034,0.28129144,40752.0,40745.0,0.122808]
[1646405705233,0.28129144,40752.0,40747.0,0.05]
[1646405705434,0.061404,40751.0,40747.0,0.05]
[1646405705634,0.061404,40751.0,40736.0,0.122821]
[1646405705833,0.061404,40751.0,40737.0,0.05]
[1646405706080,0.061404,40751.0,40738.0,0.31590286]
[1646405706282,0.311656,40754.0,40738.0,0.31590286]
[1646405706283,0.06141438,40749.0,40738.0,0.31590286]
[1646405706482,0.061402,40750.0,40738.0,0.31590286]
[1646405706684,0.004,40755.0,40747.0,0.05]
[1646405707081,0.004,40755.0,40748.0,0.22588662]
[1646405707287,0.004,40755.0,40750.0,0.02423]
[1646405707682,0.004,40755.0,40753.0,0.02423]
[1646405707881,0.78093711,40775.0,40751.0,0.05]
[1646405707882,0.27696954,40768.0,40751.0,0.05]
[1646405708085,0.02423,40767.0,40749.0,0.34389244]
[1646405708281,0.30966397,40771.0,40749.0,0.40528944]
[1646405708282,0.27496737,40761.0,40749.0,0.40528944]
[1646405708483,0.31365906,40760.0,40749.0,0.40528944]
[1646405708681,0.061396,40758.0,40749.0,0.40528944]
[1646405709084,0.02423,40767.0,40749.0,0.40528944]
[1646405709482,0.31365906,40768.0,40749.0,0.40528944]
[1646405709728,0.061386,40761.0,40749.0,0.111397]
[1646405709930,0.31365906,40764.0,40758.0,0.24772028]
[1646405710128,0.122773,40765.0,40759.0,0.05]
[1646405710328,0.31365906,40768.0,40759.0,0.05]
[1646405710532,0.31865906,40768.0,40757.0,0.05]
[1646405710729,0.061381,40764.0,40757.0,0.05]
[1646405711130,0.31865906,40768.0,40757.0,0.05]
[1646405711328,0.28387865,40765.0,40761.0,0.06138]
[1646405711730,0.31365906,40764.0,40756.0,0.122764]
[1646405712130,0.31365906,40764.0,40756.0,0.29659207]
[1646405712330,0.061384,40765.0,40756.0,0.122764]
[1646405712531,0.066384,40765.0,40756.0,0.122764]
[1646405712932,0.066384,40765.0,40759.0,0.31916167]
[1646405713876,0.066384,40765.0,40756.0,0.122764]
[1646405713877,0.061384,40765.0,40756.0,0.122764]
[1646405714077,0.061384,40765.0,40757.0,0.05]
[1646405714676,0.061384,40765.0,40760.0,0.06138]
[1646405715479,0.28856174,40764.0,40760.0,0.06138]
[1646405715678,0.061384,40765.0,40760.0,0.06138]
[1646405716480,0.061374,40768.0,40760.0,0.06138]
[1646405716680,0.8988,40769.0,40758.0,0.29311903]
[1646405716681,0.9038,40769.0,40765.0,0.06886261]
[1646405717086,0.9038,40769.0,40766.0,0.32918222]
[1646405717329,0.9038,40769.0,40766.0,0.37918222]
[1646405717529,0.12273,40776.0,40766.0,0.69284128]
[1646405717733,1.52619044,40791.0,40769.0,0.15]
[1646405717734,1.0352,40791.0,40769.0,0.15]
[1646405717931,1.0352,40791.0,40770.0,0.35885906]
[1646405718133,0.122683,40792.0,40775.0,0.15]
[1646405718334,0.002,40797.0,40781.0,0.02423]
[1646405718530,0.37438769,40794.0,40786.0,0.02423]
[1646405718731,0.37438769,40794.0,40780.0,0.0452]
[1646405718732,0.37438769,40794.0,40785.0,0.05]
[1646405718930,0.061333,40794.0,40785.0,0.05]
[1646405719130,0.002,40797.0,40786.0,0.061329]
[1646405719331,0.002,40797.0,40787.0,0.02423]
[1646405719734,0.002,40797.0,40790.0,0.02423]
[1646405719931,0.002,40797.0,40789.0,0.122659]
[1646405719932,0.122678,40795.0,40789.0,0.122659]
[1646405720131,0.122678,40795.0,40785.0,0.29419387]
[1646405720332,0.122678,40795.0,40786.0,0.02423]
[1646405720530,0.122678,40795.0,40783.0,0.05]
[1646405720531,0.29437497,40789.0,40783.0,0.05]
[1646405720732,0.43633706,40795.0,40783.0,0.05]
[1646405720733,0.122678,40795.0,40783.0,0.05]
[1646405721004,0.31365906,40794.0,40783.0,0.05]
[1646405721206,0.061341,40791.0,40786.0,0.061341]
[1646405721402,0.37987958,40791.0,40783.0,0.05]
[1646405721605,0.37987958,40791.0,40780.0,0.0452]
[1646405721801,0.04780225,40791.0,40783.0,0.06134]
[1646405722002,0.04780225,40791.0,40790.0,0.07161378]
[1646405722203,0.002,40797.0,40790.0,0.07161378]
[1646405722204,0.061331,40796.0,40790.0,0.07161378]
[1646405722408,0.061331,40796.0,40788.0,0.21429014]
[1646405722604,0.3170849,40795.0,40787.0,0.001]
[1646405723003,0.002,40797.0,40787.0,0.001]
[1646405723203,0.06133792,40796.0,40787.0,0.001]
[1646405723404,0.061341,40793.0,40787.0,0.062341]
[1646405723607,0.25209965,40792.0,40787.0,0.001]
[1646405723804,0.3170849,40791.0,40783.0,0.122681]
[1646405724004,0.24811449,40785.0,40783.0,0.122681]
[1646405724203,0.3170849,40791.0,40783.0,0.122681]
[1646405724504,0.061335,40793.0,40785.0,0.08210598]
[1646405724741,0.63605803,40809.0,40785.0,0.08210598]
[1646405724742,0.4097,40808.0,40791.0,0.02423]
[1646405724944,0.4097,40808.0,40797.0,0.02423]
[1646405725143,0.4494,40805.0,40797.0,0.7544779]
[1646405725340,0.28004314,40806.0,40797.0,0.0952]
[1646405725537,0.061318,40805.0,40798.0,0.05518946]
[1646405725737,0.061318,40805.0,40797.0,0.0952]
[1646405726337,0.47101903,40808.0,40797.0,0.0952]
[1646405726338,0.29677108,40802.0,40797.0,0.0952]
[1646405726738,0.20956088,40798.0,40797.0,0.0952]
[1646405727040,0.061325,40801.0,40797.0,0.3452]
[1646405727339,0.3784099,40801.0,40797.0,0.3]
[1646405727739,0.3784099,40801.0,40797.0,0.25]
[1646405727938,0.27627779,40800.0,40797.0,0.25]
[1646405728591,0.3824099,40801.0,40797.0,0.25]
[1646405728787,0.065325,40801.0,40797.0,0.25]
[1646405728986,0.004,40801.0,40798.0,0.21888116]
[1646405729188,0.004,40801.0,40797.0,0.311326]
[1646405729388,0.004,40801.0,40797.0,0.385556]
[1646405729586,0.004,40801.0,40798.0,0.27892381]
[1646405729987,0.000125,40805.0,40797.0,0.361326]
[1646405730191,0.061324,40803.0,40797.0,0.361326]
[1646405731993,0.36208277,40801.0,40797.0,0.25]
[1646405732435,0.3170849,40800.0,40797.0,0.25]
[1646405732632,0.36208277,40801.0,40797.0,0.25]
[1646405732633,0.29933424,40799.0,40797.0,0.25]
[1646405733033,0.06133,40798.0,40797.0,0.25]
[1646405733838,0.23942177,40801.0,40797.0,0.25]
[1646405734033,0.000125,40805.0,40797.0,0.25]
[1646405734233,0.000125,40805.0,40797.0,0.361322]
[1646405734634,0.000125,40805.0,40804.0,0.29194198]
[1646405734834,0.000125,40805.0,40799.0,0.3170849]
[1646405735033,0.000125,40805.0,40799.0,0.05]
[1646405735233,0.000125,40805.0,40798.0,0.18065475]
[1646405735437,0.000125,40805.0,40797.0,0.422623]
[1646405735634,0.000125,40805.0,40799.0,0.146864]
[1646405735837,0.000125,40805.0,40801.0,0.061312]
[1646405736284,0.000125,40805.0,40802.0,0.73526]
[1646405736488,0.000125,40805.0,40803.0,0.15678782]
[1646405736783,0.000125,40805.0,40804.0,0.78522]
[1646405737786,0.000125,40805.0,40804.0,0.73522]
[1646405738188,0.23658386,40805.0,40804.0,0.73522]
[1646405738383,0.53290857,40805.0,40804.0,0.73522]
[1646405738584,0.59423257,40805.0,40804.0,0.73522]
[1646405739187,0.000125,40805.0,40804.0,0.73522]
[1646405739591,1.4,40804.0,40785.0,0.183967]
[1646405739841,1.4,40804.0,40786.0,0.061339]
[1646405739842,0.3622849,40803.0,40786.0,0.061339]
[1646405740038,0.4622849,40803.0,40786.0,0.061339]
[1646405740240,0.06133847,40797.0,40786.0,0.061339]
[1646405740543,0.000125,40805.0,40799.0,0.31599971]
[1646405741237,0.000125,40805.0,40803.0,0.21929846]
[1646405741439,0.000125,40805.0,40800.0,0.3784019]
[1646405741638,0.000125,40805.0,40800.0,0.061317]
[1646405742238,0.000125,40805.0,40803.0,0.20159192]
[1646405742639,0.000125,40805.0,40803.0,0.25159192]
[1646405743483,0.000125,40805.0,40803.0,0.24659192]
[1646405744286,0.000125,40805.0,40804.0,0.73522]
[1646405744490,0.000125,40805.0,40804.0,1.49031116]
[1646405744688,0.00220453,40805.0,40804.0,0.80465]
[1646405745088,0.31769816,40818.0,40816.0,0.26284891]
[1646405745289,0.2448902,40825.0,40816.0,0.05]
[1646405745488,0.1225961,40821.0,40816.0,0.05]
[1646405745688,0.31769816,40820.0,40813.0,0.28488894]
[1646405745893,0.2448902,40825.0,40813.0,0.28488894]
[1646405746190,0.31769816,40824.0,40813.0,0.28488894]
[1646405746389,0.27567612,40822.0,40813.0,0.40747494]
[1646405746688,0.59337428,40822.0,40813.0,0.40747494]
[1646405746888,0.122587,40827.0,40820.0,0.05446862]
[1646405747093,0.015,40829.0,40821.0,0.31769816]
[1646405747339,0.015,40829.0,40822.0,0.061277]
[1646405747541,0.015,40829.0,40821.0,0.122554]
[1646405747542,0.076283,40829.0,40821.0,0.122554]
[1646405747737,0.076283,40829.0,40822.0,0.05]
[1646405747939,0.25870716,40827.0,40822.0,0.05]
[1646405748938,0.25870716,40827.0,40821.0,0.3]
[1646405749741,0.38129116,40827.0,40821.0,0.3]
[1646405751294,0.25870716,40827.0,40821.0,0.3]
[1646405751493,0.31999716,40827.0,40821.0,0.3]
[1646405751892,0.31999716,40827.0,40821.0,0.58498136]
[1646405752293,0.36999716,40827.0,40821.0,0.58498136]
[1646405752696,0.30870716,40827.0,40821.0,0.58498136]
[1646405752895,0.25870716,40827.0,40821.0,0.58498136]
[1646405753396,0.06128282,40828.0,40821.0,0.3]
[1646405753701,0.061288,40828.0,40821.0,0.3]
[1646405754295,0.061288,40828.0,40823.0,0.00079681]
[1646405754736,0.01,40829.0,40823.0,0.26685338]
[1646405755136,0.01,40829.0,40826.0,0.18398652]
[1646405755336,0.122567,40835.0,40827.0,1.71661238]
[1646405755542,0.0119,40838.0,40827.0,1.9531312]
[1646405755741,1.327,40854.0,40843.0,0.06846527]
[1646405755946,0.117509,40854.0,40843.0,0.06846527]
[1646405756137,0.117509,40854.0,40851.0,0.17345062]
[1646405756343,0.31661238,40860.0,40852.0,0.29265339]
[1646405756344,0.2503795,40860.0,40852.0,0.29265339]
[1646405756538,0.2503795,40860.0,40843.0,0.13789527]
[1646405756539,0.4957885,40860.0,40843.0,0.13789527]
[1646405756738,0.37785456,40859.0,40845.0,0.172489]
[1646405756939,0.31661238,40858.0,40845.0,0.172489]
[1646405757339,0.06124218,40859.0,40850.0,0.18308737]
[1646405757544,0.34191677,40859.0,40850.0,0.47662138]
[1646405757740,0.2288795,40860.0,40851.0,0.061238]
[1646405758340,0.2288795,40860.0,40850.0,0.35477401]
[1646405758593,0.171994,40862.0,40859.0,0.25170069]
[1646405758797,0.17134144,40862.0,40859.0,0.3069549]
[1646405758996,0.061229,40868.0,40859.0,0.3069549]
[1646405758997,0.01,40879.0,40861.0,0.76283]
[1646405759194,0.01,40879.0,40863.0,0.76283]
[1646405759392,0.01,40879.0,40862.0,0.0452]
[1646405759590,0.01,40879.0,40875.0,0.28840603]
[1646405759792,0.01,40879.0,40875.0,0.05]
[1646405760191,0.01,40879.0,40875.0,0.122399]
[1646405760592,0.01,40879.0,40868.0,0.122409]
[1646405760796,0.01,40879.0,40869.0,0.05]
[1646405761193,0.29963067,40877.0,40869.0,0.05]
[1646405761393,0.29963067,40877.0,40871.0,0.061212]
[1646405761793,0.34963067,40877.0,40871.0,0.061212]
[1646405762253,0.29963067,40877.0,40872.0,0.05]
[1646405762453,0.29963067,40877.0,40873.0,0.061205]
[1646405762653,0.01,40879.0,40874.0,0.16902682]
[1646405762853,0.01,40879.0,40873.0,0.111205]
[1646405763053,0.01,40879.0,40873.0,0.05]
[1646405763455,0.01,40879.0,40874.0,0.061204]
[1646405763754,0.29527003,40875.0,40870.0,0.15695048]
[1646405763954,0.29527003,40875.0,40866.0,0.05]
[1646405764159,0.02423,40873.0,40856.0,0.0452]
[1646405764357,0.4494,40873.0,40870.0,0.00092954]
[1646405764555,0.548522,40872.0,40871.0,0.2]
[1646405764858,1.1,40870.0,40841.0,0.0452]
[1646405765155,0.06123961,40863.0,40844.0,0.3268826]
[1646405765358,0.34276054,40862.0,40840.0,0.4726]
[1646405765554,0.34276054,40862.0,40838.0,0.061257]
[1646405765555,0.061245,40853.0,40838.0,0.061257]
[1646405765765,0.02423,40860.0,40838.0,0.061257]
[1646405765766,0.122515,40849.0,40838.0,0.061257]
[1646405765988,0.167715,40849.0,40839.0,0.2093563]
[1646405766189,0.25129323,40846.0,40840.0,0.061256]
[1646405766988,0.31735286,40845.0,40837.0,0.122505]
[1646405767191,0.31735286,40845.0,40833.0,0.001]
[1646405767192,0.12253,40844.0,40833.0,0.001]
[1646405767391,0.0452,40843.0,40833.0,0.001]
[1646405767591,0.31735286,40842.0,40833.0,0.002]
[1646405767791,0.36735286,40842.0,40840.0,0.25]
[1646405767991,0.05,40842.0,40840.0,0.25]
[1646405768190,0.17253,40844.0,40840.0,0.25]
[1646405768590,0.0452,40846.0,40840.0,0.25]
[1646405769296,0.31735286,40845.0,40840.0,0.25]
[1646405769491,0.0452,40845.0,40840.0,0.3]
[1646405769747,0.122528,40842.0,40840.0,0.3]
[1646405769946,0.111261,40842.0,40840.0,0.3]
[1646405770651,0.36255286,40841.0,40840.0,0.3]
[1646405770846,0.36255286,40841.0,40840.0,0.25]
[1646405771248,0.0612787,40840.0,40833.0,0.002]
[1646405771448,0.061278,40836.0,40833.0,0.002]
[1646405771645,0.106478,40836.0,40833.0,0.002]
[1646405772649,0.106478,40836.0,40833.0,0.00154358]
[1646405772849,0.106478,40836.0,40833.0,0.06281258]
[1646405773055,0.005,40840.0,40833.0,0.06281258]
[1646405773487,0.005,40840.0,40836.0,0.23246248]
[1646405773691,0.005,40840.0,40836.0,0.05]
[1646405773888,0.26326797,40840.0,40836.0,0.05]
[1646405774187,0.31826382,40842.0,40834.0,0.05]
[1646405774392,0.0452,40843.0,40833.0,0.06281258]
[1646405774591,0.2499,40848.0,40834.0,0.31826382]
[1646405774788,0.2499,40848.0,40837.0,0.061254]
[1646405774789,0.005,40841.0,40837.0,0.061254]
[1646405774988,0.005,40841.0,40839.0,0.25943515]
[1646405775388,0.005,40841.0,40838.0,0.24435807]
[1646405775588,0.005,40841.0,40831.0,0.061265]
[1646405776090,0.31826382,40845.0,40832.0,0.061265]
[1646405776290,0.27513965,40846.0,40831.0,0.122517]
[1646405776487,0.27513965,40846.0,40833.0,0.25446869]
[1646405776488,0.31826382,40845.0,40833.0,0.25446869]
[1646405776688,0.37952182,40845.0,40833.0,0.25446869]
[1646405776892,0.37952182,40845.0,40835.0,0.06126]
[1646405777088,0.37952182,40845.0,40833.0,0.37698369]
[1646405777089,0.24130012,40839.0,40833.0,0.37698369]
[1646405777332,0.0452,40846.0,40834.0,0.05]
[1646405777535,0.31826382,40850.0,40834.0,0.05]
[1646405777731,0.061254,40848.0,40834.0,0.05]
[1646405777932,0.31826382,40847.0,40835.0,0.061257]
[1646405778132,0.183798,40851.0,40835.0,0.061257]
[1646405778133,0.34274382,40850.0,40835.0,0.061257]
[1646405778335,0.34274382,40850.0,40840.0,0.2586291]
[1646405778336,0.2327586,40847.0,40840.0,0.2586291]
[1646405778533,0.2327586,40847.0,40841.0,0.20992959]
[1646405778732,0.2327586,40847.0,40842.0,0.05]
[1646405778932,0.31826382,40850.0,40842.0,0.05]
[1646405779135,0.183798,40851.0,40839.0,0.061252]
[1646405779334,0.001,40852.0,40839.0,0.05]
[1646405779535,0.001,40852.0,40836.0,0.05]
[1646405780036,0.31826382,40857.0,40836.0,0.05]
[1646405780037,0.24644273,40846.0,40840.0,0.20619324]
[1646405780232,0.24644273,40846.0,40840.0,0.05]
[1646405780634,0.24644273,40846.0,40835.0,0.122501]
[1646405780833,0.24644273,40846.0,40838.0,0.21166578]
[1646405781094,0.24644273,40846.0,40838.0,0.05]
[1646405781499,0.25265161,40839.0,40834.0,0.25]
[1646405781696,0.2384684,40839.0,40834.0,0.25]
[1646405781895,0.31826382,40838.0,40834.0,0.25]
[1646405782100,0.2384684,40839.0,40834.0,0.52734843]
[1646405782293,0.2384684,40839.0,40834.0,0.25]
[1646405783095,0.2384684,40839.0,40834.0,0.3]
[1646405783293,0.122533,40843.0,40834.0,0.51970649]
[1646405783894,0.122533,40843.0,40834.0,0.3]
[1646405784097,0.061264,40841.0,40834.0,0.3]
[1646405784294,0.30754607,40840.0,40834.0,0.58936133]
[1646405784497,0.30754607,40840.0,40835.0,0.28252001]
[1646405784739,0.30754607,40840.0,40834.0,0.58936133]
[1646405784936,0.30754607,40840.0,40834.0,0.3]
[1646405785736,0.62436403,40840.0,40834.0,0.25]
[1646405785938,0.62422982,40840.0,40834.0,0.25]
[1646405786537,0.62422982,40840.0,40834.0,0.311263]
[1646405786739,0.61922982,40840.0,40834.0,0.310263]
[1646405787042,0.61922982,40840.0,40815.0,0.05]
[1646405787043,0.02448,40835.0,40815.0,0.05]
[1646405787243,0.02448,40830.0,40808.0,0.9342]
[1646405787441,0.31681796,40835.0,40808.0,0.4791]
[1646405787442,0.02448,40828.0,40808.0,0.4791]
[1646405787639,0.2274629,40818.0,40808.0,0.4791]
[1646405787839,0.31681796,40828.0,40809.0,0.26190032]
[1646405787840,0.3050548,40817.0,40809.0,0.26190032]
[1646405788139,0.061305,40815.0,40811.0,0.21541353]
[1646405788339,0.0452,40814.0,40809.0,0.26190032]
[1646405788587,0.0452,40814.0,40807.0,0.001]
[1646405788990,0.0452,40814.0,40809.0,0.25]
[1646405789592,0.30902685,40813.0,40809.0,0.25]
[1646405789796,0.61986735,40813.0,40809.0,0.25]
[1646405789993,0.0452,40812.0,40809.0,0.25]
[1646405791792,0.061309,40811.0,40809.0,0.25]
[1646405791998,0.3560405,40810.0,40795.0,0.002]
[1646405792235,0.1452,40809.0,40797.0,0.001]
[1646405792442,0.2499,40805.0,40797.0,0.001]
[1646405792737,0.167872,40804.0,40797.0,0.001]
[1646405792936,0.06133497,40803.0,40797.0,0.001]
[1646405793139,0.0452,40802.0,40797.0,0.001]
[1646405793637,0.3108405,40801.0,40797.0,0.001]
[1646405793835,0.0452,40800.0,40797.0,0.001]
[1646405794035,0.167869,40800.0,40797.0,0.001]
[1646405794239,0.0452,40800.0,40797.0,0.001]
[1646405794736,0.3108405,40808.0,40799.0,0.32570444]
[1646405794737,0.006,40802.0,40799.0,0.32570444]
[1646405794938,0.006,40802.0,40799.0,0.05]
[1646405795142,0.006,40802.0,40800.0,0.30538699]
[1646405795338,0.006,40802.0,40800.0,0.29169245]
[1646405795837,0.2499,40814.0,40802.0,0.012]
[1646405795838,0.29706684,40811.0,40802.0,0.012]
[1646405796501,0.06131388,40811.0,40802.0,0.012]
[1646405796698,0.2499,40814.0,40802.0,0.012]
[1646405797097,0.2499,40814.0,40805.0,0.2063258]
[1646405797296,0.2499,40814.0,40806.0,0.05]
[1646405797297,0.2999,40814.0,40806.0,0.05]